lending/lending_fUSD_20250303
["ID","MTS","AMOUNT","RATE_DAILY","PERIOD"]
[355191148,1740975070240,-509.47661446,0.00024657,2]
[355191149,1740975070251,-500.0,0.00024657,2]
[355191150,1740975070260,-500.0,0.00024657,2]
[355191151,1740975070270,-500.0,0.00024657,2]
[355191152,1740975070280,-15566.77,0.00024657,2]
[355191153,1740975070290,-556.29,0.00024657,2]
[355191154,1740975070299,-2518.58,0.00024657,2]
[355191155,1740975070309,-500.0,0.00024657,2]
[355191156,1740975070319,-595.17,0.00024657,2]
[355191157,1740975070329,-2098.01,0.00024657,2]
[355191158,1740975070338,-500.0,0.00024657,2]
[355191159,1740975070348,-540.5,0.00024657,2]
[355191160,1740975070357,-567.04,0.00024657,2]
[355191161,1740975070367,-500.0,0.00024657,2]
[355191162,1740975070377,-500.0,0.00024657,2]
[355191163,1740975070391,-852.88,0.00024657,2]
[355191164,1740975070400,-898.43,0.00024657,2]
[355191165,1740975070410,-1616.95,0.00024657,2]
[355191166,1740975070419,-515.6,0.00024657,2]
[355191167,1740975070429,-500.0,0.00024657,2]
[355191168,1740975070439,-295.20512184,0.00024657,2]
[355191169,1740975070448,-500.0,0.00024657,2]
[355191170,1740975070458,-500.0,0.00024657,2]
[355191171,1740975070468,-500.0,0.00024657,2]
[355191172,1740975070477,-537.83,0.00024657,2]
[355191173,1740975070487,-500.0,0.00024657,2]
[355191174,1740975070497,-511.58,0.00024657,2]
[355191175,1740975070507,-500.0,0.00024657,2]
[355191176,1740975070517,-628.38,0.00024657,2]
[355191177,1740975070527,-500.0,0.00024657,2]
[355191178,1740975070536,-536.97,0.00024657,2]
[355191179,1740975070547,-500.0,0.00024657,2]
[355191180,1740975070556,-619.57,0.00024657,2]
[355191181,1740975070566,-500.0,0.00024657,2]
[355191182,1740975070575,-35220.11,0.00024657,2]
[355191183,1740975070584,-500.0,0.00024657,2]
[355191184,1740975070594,-500.0,0.00024657,2]
[355191185,1740975070603,-665.34,0.00024657,2]
[355191186,1740975070613,-500.0,0.00024657,2]
[355191187,1740975070622,-500.0,0.00024657,2]
[355191188,1740975070631,-500.0,0.00024657,2]
[355191189,1740975070641,-500.0,0.00024657,2]
[355191190,1740975070652,-500.0,0.00024657,2]
[355191191,1740975070661,-500.0,0.00024657,2]
[355191192,1740975070671,-500.0,0.00024657,2]
[355191193,1740975070680,-500.0,0.00024657,2]
[355191194,1740975070690,-500.0,0.00024657,2]
[355191195,1740975070699,-500.0,0.00024657,2]
[355191196,1740975070708,-500.0,0.00024657,2]
[355191197,1740975070717,-1000.0,0.00024658,2]
[355191198,1740975070727,-6166.08571866,0.00024661,2]
[355191199,1740975070739,-6166.08571864,0.00024661,2]
[355191200,1740975070749,-6166.08571864,0.00024661,2]
[355191201,1740975070759,-1263.8014,0.000247,2]
[355191202,1740975070769,-376.8326,0.000247,2]
[355191203,1740975070779,-7636.37471161,0.00024702,2]
[355191204,1740975070788,-150.0,0.00024702,2]
[355191205,1740975070798,-150.0,0.00024747,2]
[355191206,1740975070808,-2000.0,0.00024765,2]
[355191207,1740975070818,-2000.0,0.00024765,2]
[355191208,1740975070827,-150.0,0.00024808,2]
[355191209,1740975070836,-150.0,0.00024824,2]
[355191210,1740975070846,-8986.9352562,0.0002485,2]
[355191211,1740975070861,-150.0,0.00024896,2]
[355191212,1740975070871,-150.0,0.00024899,2]
[355191213,1740975070880,-202.0,0.0002492,2]
[355191214,1740975070889,-150.0,0.00024925,2]
[355191215,1740975070898,-2581.61,0.0002493,2]
[355191216,1740975070908,-568.51,0.00024931,2]
[355191217,1740975070917,-300.0,0.00024931,2]
[355191218,1740975070926,-355.30377412,0.00024931,2]
[355191219,1740975070936,-152.335173,0.00024931,2]
[355191220,1740975070945,-165.164605,0.00024931,2]
[355191221,1740975070955,-5263.18,0.00024931,2]
[355191222,1740975070965,-500.0,0.00024931,2]
[355191223,1740975070975,-500.0,0.00024931,2]
[355191224,1740975070984,-726.77,0.00024931,2]
[355191225,1740975070996,-538.98,0.00024931,2]
[355191226,1740975071006,-510.61060553,0.00024931,2]
[355191227,1740975071016,-776.48,0.00024931,2]
[355191228,1740975071026,-1602.35,0.00024931,2]
[355191229,1740975071035,-338.68002165,0.00024931,2]
[355191230,1740975071045,-654.85,0.00024931,2]
[355191231,1740975071054,-695.45,0.00024931,2]
[355191232,1740975071063,-500.0,0.00024931,2]
[355191233,1740975071072,-500.0,0.00024931,2]
[355191234,1740975071083,-500.0,0.00024931,2]
[355191235,1740975071092,-500.0,0.00024931,2]
[355191236,1740975071101,-15566.77,0.00024931,2]
[355191237,1740975071110,-556.29,0.00024931,2]
[355191238,1740975071119,-2518.58,0.00024931,2]
[355191239,1740975071129,-500.0,0.00024931,2]
[355191240,1740975071139,-595.17,0.00024931,2]
[355191241,1740975071148,-2098.01,0.00024931,2]
[355191242,1740975071157,-500.0,0.00024931,2]
[355191243,1740975071166,-540.5,0.00024931,2]
[355191244,1740975071176,-567.04,0.00024931,2]
[355191245,1740975071186,-500.0,0.00024931,2]
[355191246,1740975071195,-500.0,0.00024931,2]
[355191247,1740975071204,-852.88,0.00024931,2]
[355191248,1740975071214,-898.43,0.00024931,2]
[355191249,1740975071223,-1616.95,0.00024931,2]
[355191250,1740975071233,-515.6,0.00024931,2]
[355191251,1740975071242,-500.0,0.00024931,2]
[355191252,1740975071252,-500.0,0.00024931,2]
[355191253,1740975071261,-500.0,0.00024931,2]
[355191254,1740975071271,-500.0,0.00024931,2]
[355191255,1740975071280,-537.83,0.00024931,2]
[355191256,1740975071289,-500.0,0.00024931,2]
[355191257,1740975071298,-511.58,0.00024931,2]
[355191258,1740975071308,-500.0,0.00024931,2]
[355191259,1740975071317,-628.38,0.00024931,2]
[355191260,1740975071327,-536.97,0.00024931,2]
[355191261,1740975071336,-468.78005078,0.00024931,2]
[355191262,1740975071345,-500.0,0.00024931,2]
[355191263,1740975071355,-619.57,0.00024931,2]
[355191264,1740975071364,-500.0,0.00024931,2]
[355191265,1740975071374,-35220.11,0.00024931,2]
[355191266,1740975071385,-500.0,0.00024931,2]
[355191267,1740975071394,-500.0,0.00024931,2]
[355191268,1740975071404,-665.34,0.00024931,2]
[355191269,1740975071413,-500.0,0.00024931,2]
[355191270,1740975071424,-500.0,0.00024931,2]
[355191271,1740975071434,-500.0,0.00024931,2]
[355191272,1740975071443,-500.0,0.00024931,2]
[355191273,1740975071452,-500.0,0.00024931,2]
[355191274,1740975071463,-500.0,0.00024931,2]
[355191275,1740975071472,-500.0,0.00024931,2]
[355191276,1740975071482,-500.0,0.00024931,2]
[355191277,1740975071492,-500.0,0.00024931,2]
[355191278,1740975071502,-500.0,0.00024931,2]
[355191279,1740975071511,-500.0,0.00024931,2]
[355191280,1740975071520,-392.10380138,0.0002496,2]
[355191281,1740975071529,-150.0,0.00024966,2]
[355191282,1740975071539,-2031.0,0.00024966,2]
[355191283,1740975071549,-679.83,0.00025,2]
[355191284,1740975071558,-3000.0,0.00025,2]
[355191285,1740975071567,-3000.0,0.00025,2]
[355191286,1740975071576,-718.15,0.00025,2]
[355191287,1740975071586,-198.69549764,0.00025,2]
[355191288,1740975071595,-1009.0,0.00025,10]
[355191289,1740975071605,-1009.0,0.00025,10]
[355191290,1740975071614,-1009.0,0.00025,10]
[355191291,1740975071623,-1009.0,0.00025,10]
[355191292,1740975071633,-1009.0,0.00025,10]
[355191293,1740975071642,-1009.0,0.00025,10]
[355191294,1740975071651,-1009.0,0.00025,10]
[355191295,1740975071660,-1009.0,0.00025,10]
[355191296,1740975071669,-1009.0,0.00025,10]
[355191297,1740975071679,-1009.0,0.00025,10]
[355191298,1740975071688,-1009.0,0.00025,10]
[355191299,1740975071698,-1009.0,0.00025,10]
[355191300,1740975071707,-1009.0,0.00025,10]
[355191301,1740975071716,-1009.0,0.00025,10]
[355191302,1740975071725,-1009.0,0.00025,10]
[355191303,1740975071735,-1009.0,0.00025,10]
[355191304,1740975071744,-1009.0,0.00025,10]
[355191305,1740975071753,-1009.0,0.00025,10]
[355191306,1740975071763,-1009.0,0.00025,10]
[355191307,1740975071773,-1009.0,0.00025,10]
[355191308,1740975071786,-1009.0,0.00025,10]
[355191309,1740975071796,-1009.0,0.00025,10]
[355191310,1740975071806,-1009.0,0.00025,10]
[355191311,1740975071815,-1009.0,0.00025,10]
[355191312,1740975071825,-1009.0,0.00025,10]
[355191313,1740975071835,-1009.0,0.00025,10]
[355191314,1740975071845,-1009.0,0.00025,10]
[355191315,1740975071854,-1009.0,0.00025,10]
[355191316,1740975071863,-1009.0,0.00025,10]
[355191317,1740975071873,-1009.0,0.00025,10]
[355191318,1740975071882,-1150.0,0.00025,10]
[355191319,1740975071891,-728.6509288,0.00025,50]
[355191320,1740975071899,-325.99,0.00025,2]
[355191321,1740975071909,-2002.15002183,0.00025,2]
[355191322,1740975071918,-550.0,0.00025,2]
[355191323,1740975071926,-200.0,0.00025,2]
[355191324,1740975071935,-200.0,0.00025,2]
[355191325,1740975071945,-5000.0,0.00025,30]
[355191326,1740975071954,-2000.0,0.00025,4]
[355191327,1740975071963,-151.57,0.00025,2]
[355191328,1740975071972,-151.57,0.00025,2]
[355191329,1740975071982,-151.57,0.00025,2]
[355191330,1740975071992,-151.57,0.00025,2]
[355191331,1740975072001,-151.57,0.00025,2]
[355191332,1740975072011,-151.57,0.00025,2]
[355191333,1740975072020,-151.57,0.00025,2]
[355191334,1740975072030,-151.57,0.00025,2]
[355191335,1740975072039,-151.57,0.00025,2]
[355191336,1740975072049,-151.57,0.00025,2]
[355191337,1740975072058,-168.92374006,0.00025,90]
[355191338,1740975072067,-218.0,0.000251,2]
[355191339,1740975072076,-2581.61,0.00025204,2]
[355191340,1740975072085,-568.51,0.00025205,2]
[355191341,1740975072094,-300.0,0.00025205,2]
[355191342,1740975072104,-155.104905,0.00025205,2]
[355191343,1740975072113,-152.335173,0.00025205,2]
[355191344,1740975072122,-165.164605,0.00025205,2]
[355191345,1740975072132,-5263.18,0.00025205,2]
[355191346,1740975072141,-500.0,0.00025205,2]
[355191347,1740975072151,-500.0,0.00025205,2]
[355191348,1740975072160,-726.77,0.00025205,2]
[355191349,1740975072170,-538.98,0.00025205,2]
[355191350,1740975072179,-776.48,0.00025205,2]
[355191351,1740975072189,-1602.35,0.00025205,2]
[355191352,1740975072198,-654.85,0.00025205,2]
[355191353,1740975072208,-695.45,0.00025205,2]
[355191354,1740975072217,-500.0,0.00025205,2]
[355191355,1740975072226,-500.0,0.00025205,2]
[355191356,1740975072236,-500.0,0.00025205,2]
[355191357,1740975072246,-500.0,0.00025205,2]
[355191358,1740975072255,-15566.77,0.00025205,2]
[355191359,1740975072264,-556.29,0.00025205,2]
[355191360,1740975072273,-2518.58,0.00025205,2]
[355191361,1740975072283,-500.0,0.00025205,2]
[355191362,1740975072292,-595.17,0.00025205,2]
[355191363,1740975072301,-2098.01,0.00025205,2]
[355191364,1740975072310,-500.0,0.00025205,2]
[355191365,1740975072319,-540.5,0.00025205,2]
[355191366,1740975072329,-567.04,0.00025205,2]
[355191367,1740975072338,-500.0,0.00025205,2]
[355191368,1740975072348,-500.0,0.00025205,2]
[355191369,1740975072357,-852.88,0.00025205,2]
[355191370,1740975072367,-898.43,0.00025205,2]
[355191371,1740975072378,-1616.95,0.00025205,2]
[355191372,1740975072387,-515.6,0.00025205,2]
[355191373,1740975072397,-500.0,0.00025205,2]
[355191374,1740975072407,-500.0,0.00025205,2]
[355191375,1740975072422,-500.0,0.00025205,2]
[355191376,1740975072611,-500.0,0.00025205,2]
[355191377,1740975072622,-537.83,0.00025205,2]
[355191378,1740975072632,-500.0,0.00025205,2]
[355191379,1740975072642,-511.58,0.00025205,2]
[355191380,1740975072652,-239.81544292,0.00025205,2]
[355191381,1740975072662,-628.38,0.00025205,2]
[355191382,1740975072671,-536.97,0.00025205,2]
[355191383,1740975072680,-500.0,0.00025205,2]
[355191384,1740975072691,-619.57,0.00025205,2]
[355191385,1740975072701,-500.0,0.00025205,2]
[355191386,1740975072710,-35220.11,0.00025205,2]
[355191387,1740975072720,-500.0,0.00025205,2]
[355191388,1740975072730,-517.20598578,0.00025205,2]
[355191389,1740975072740,-665.34,0.00025205,2]
[355191390,1740975072750,-500.0,0.00025205,2]
[355191391,1740975072760,-500.0,0.00025205,2]
[355191392,1740975072769,-500.0,0.00025205,2]
[355191393,1740975072779,-500.0,0.00025205,2]
[355191394,1740975072789,-500.0,0.00025205,2]
[355191395,1740975072798,-500.0,0.00025205,2]
[355191396,1740975072808,-500.0,0.00025205,2]
[355191397,1740975072818,-500.0,0.00025205,2]
[355191398,1740975072827,-500.0,0.00025205,2]
[355191399,1740975072837,-500.0,0.00025205,2]
[355191400,1740975072846,-500.0,0.00025205,2]
[355191401,1740975072856,-200.0,0.0002525,2]
[355191402,1740975072865,-200.0,0.0002525,2]
[355191403,1740975072875,-203.0,0.0002533,2]
[355191404,1740975072884,-2000.2929,0.00025351,2]
[355191405,1740975072894,-2000.0,0.00025351,2]
[355191406,1740975072904,-9097.95362175,0.00025432,2]
[355191407,1740975072914,-500.0,0.0002547,2]
[355191408,1740975072923,-2581.61,0.00025478,2]
[355191409,1740975072933,-3000.0,0.00025479,7]
[355191410,1740975072942,-568.51,0.00025479,2]
[355191411,1740975072952,-300.0,0.00025479,2]
[355191412,1740975072962,-152.335173,0.00025479,2]
[355191413,1740975072971,-165.164605,0.00025479,2]
[355191414,1740975072981,-5263.18,0.00025479,2]
[355191415,1740975072990,-500.0,0.00025479,2]
[355191416,1740975073000,-500.0,0.00025479,2]
[355191417,1740975073010,-726.77,0.00025479,2]
[355191418,1740975073020,-538.98,0.00025479,2]
[355191419,1740975073030,-776.48,0.00025479,2]
[355191420,1740975073039,-1602.35,0.00025479,2]
[355191421,1740975073049,-654.85,0.00025479,2]
[355191422,1740975073060,-695.45,0.00025479,2]
[355191423,1740975073070,-500.0,0.00025479,2]
[355191424,1740975073079,-500.0,0.00025479,2]
[355191425,1740975073089,-500.0,0.00025479,2]
[355191426,1740975073099,-500.0,0.00025479,2]
[355191427,1740975073108,-15566.77,0.00025479,2]
[355191428,1740975073117,-556.29,0.00025479,2]
[355191429,1740975073128,-2518.58,0.00025479,2]
[355191430,1740975073137,-500.0,0.00025479,2]
[355191431,1740975073147,-595.17,0.00025479,2]
[355191432,1740975073158,-2098.01,0.00025479,2]
[355191433,1740975073168,-500.0,0.00025479,2]
[355191434,1740975073178,-540.5,0.00025479,2]
[355191435,1740975073188,-567.04,0.00025479,2]
[355191436,1740975073199,-500.0,0.00025479,2]
[355191437,1740975073210,-500.0,0.00025479,2]
[355191438,1740975073232,-852.88,0.00025479,2]
[355191439,1740975073244,-898.43,0.00025479,2]
[355191440,1740975073254,-1616.95,0.00025479,2]
[355191441,1740975073265,-515.6,0.00025479,2]
[355191442,1740975073276,-500.0,0.00025479,2]
[355191443,1740975073286,-500.0,0.00025479,2]
[355191444,1740975073298,-500.0,0.00025479,2]
[355191445,1740975073308,-500.0,0.00025479,2]
[355191446,1740975073319,-537.83,0.00025479,2]
[355191447,1740975073330,-500.0,0.00025479,2]
[355191448,1740975073340,-511.58,0.00025479,2]
[355191449,1740975073350,-628.38,0.00025479,2]
[355191450,1740975073360,-536.97,0.00025479,2]
[355191451,1740975073371,-500.0,0.00025479,2]
[355191452,1740975073383,-619.57,0.00025479,2]
[355191453,1740975073394,-500.0,0.00025479,2]
[355191454,1740975073405,-35220.11,0.00025479,2]
[355191455,1740975073416,-500.0,0.00025479,2]
[355191456,1740975073427,-665.34,0.00025479,2]
[355191457,1740975073437,-500.0,0.00025479,2]
[355191458,1740975073448,-500.0,0.00025479,2]
[355191459,1740975073459,-500.0,0.00025479,2]
[355191460,1740975073470,-500.0,0.00025479,2]
[355191461,1740975073481,-500.0,0.00025479,2]
[355191462,1740975073491,-500.0,0.00025479,2]
[355191463,1740975073501,-500.0,0.00025479,2]
[355191464,1740975073511,-500.0,0.00025479,2]
[355191465,1740975073522,-500.0,0.00025479,2]
[355191466,1740975073533,-500.0,0.00025479,2]
[355191467,1740975073543,-202.0,0.0002548,2]
[355191468,1740975073553,-200.0,0.00025503,2]
[355191469,1740975073563,-200.0,0.00025503,2]
[355191470,1740975073574,-778.42701636,0.0002558,2]
[355191471,1740975073585,-218.0,0.0002571,2]
[355191472,1740975073595,-2581.61,0.00025752,2]
[355191473,1740975073605,-568.51,0.00025753,2]
[355191474,1740975073616,-300.0,0.00025753,2]
[355191475,1740975073627,-152.335173,0.00025753,2]
[355191476,1740975073638,-165.164605,0.00025753,2]
[355191477,1740975073649,-5263.18,0.00025753,2]
[355191478,1740975073660,-363.90126863,0.00025753,2]
[355191479,1740975073671,-500.0,0.00025753,2]
[355191480,1740975073682,-726.77,0.00025753,2]
[355191481,1740975073692,-538.98,0.00025753,2]
[355191482,1740975073703,-776.48,0.00025753,2]
[355191483,1740975073715,-1602.35,0.00025753,2]
[355191484,1740975073725,-654.85,0.00025753,2]
[355191485,1740975073741,-695.45,0.00025753,2]
[355191486,1740975073751,-533.13717151,0.00025753,2]
[355191487,1740975073762,-500.0,0.00025753,2]
[355191488,1740975073773,-500.0,0.00025753,2]
[355191489,1740975073784,-500.0,0.00025753,2]
[355191490,1740975073795,-15566.77,0.00025753,2]
[355191491,1740975073805,-556.29,0.00025753,2]
[355191492,1740975073815,-2518.58,0.00025753,2]
[355191493,1740975073826,-500.0,0.00025753,2]
[355191494,1740975073837,-595.17,0.00025753,2]
[355191495,1740975073847,-2098.01,0.00025753,2]
[355191496,1740975073858,-500.0,0.00025753,2]
[355191497,1740975073868,-540.5,0.00025753,2]
[355191498,1740975073878,-567.04,0.00025753,2]
[355191499,1740975073889,-500.0,0.00025753,2]
[355191500,1740975073899,-500.0,0.00025753,2]
[355191501,1740975073909,-852.88,0.00025753,2]
[355191502,1740975073920,-898.43,0.00025753,2]
[355191503,1740975073930,-1616.95,0.00025753,2]
[355191504,1740975073940,-515.6,0.00025753,2]
[355191505,1740975073951,-500.0,0.00025753,2]
[355191506,1740975073962,-500.0,0.00025753,2]
[355191507,1740975073972,-500.0,0.00025753,2]
[355191508,1740975073983,-332.89333448,0.00025753,2]
[355191509,1740975073993,-537.83,0.00025753,2]
[355191510,1740975074004,-165.02250522,0.00025753,2]
[355191511,1740975074015,-511.58,0.00025753,2]
[355191512,1740975074026,-628.38,0.00025753,2]
[355191513,1740975074038,-536.97,0.00025753,2]
[355191514,1740975074049,-500.0,0.00025753,2]
[355191515,1740975074060,-619.57,0.00025753,2]
[355191516,1740975074071,-500.0,0.00025753,2]
[355191517,1740975074082,-35220.11,0.00025753,2]
[355191518,1740975074092,-500.0,0.00025753,2]
[355191519,1740975074103,-665.34,0.00025753,2]
[355191520,1740975074114,-500.0,0.00025753,2]
[355191521,1740975074125,-3000.0,0.00025753,120]
[355191522,1740975074136,-500.0,0.00025753,2]
[355191523,1740975074147,-500.0,0.00025753,2]
[355191524,1740975074158,-246.92095861,0.00025753,2]
[355191525,1740975074168,-500.0,0.00025753,2]
[355191526,1740975074178,-500.0,0.00025753,2]
[355191527,1740975074188,-348.76160158,0.00025753,2]
[355191528,1740975074199,-500.0,0.00025753,2]
[355191529,1740975074210,-500.0,0.00025753,2]
[355191530,1740975074220,-388.8251626,0.00025753,2]
[355191531,1740975074230,-344.5,0.00025753,2]
[355191532,1740975074245,-348.29,0.00025753,2]
[355191533,1740975074256,-344.5,0.00025753,2]
[355191534,1740975074267,-344.44,0.00025753,2]
[355191535,1740975074278,-200.0,0.00025758,2]
[355191536,1740975074288,-200.0,0.00025758,2]
[355191537,1740975074298,-1164.75,0.00025781,2]
[355191538,1740975074308,-7636.37471161,0.00025927,2]
[355191539,1740975074320,-23330.56278748,0.0002598,10]
[355191540,1740975074330,-300.0,0.00026,2]
[355191541,1740975074342,-2000.0,0.00026,4]
[355191542,1740975074353,-2581.61,0.00026026,2]
[355191543,1740975074364,-568.51,0.00026027,2]
[355191544,1740975074374,-300.0,0.00026027,2]
[355191545,1740975074387,-5263.18,0.00026027,2]
[355191546,1740975074398,-500.0,0.00026027,2]
[355191547,1740975074409,-726.77,0.00026027,2]
[355191548,1740975074423,-538.98,0.00026027,2]
[355191549,1740975074434,-776.48,0.00026027,2]
[355191550,1740975074445,-1602.35,0.00026027,2]
[355191551,1740975074457,-654.85,0.00026027,2]
[355191552,1740975074468,-695.45,0.00026027,2]
[355191553,1740975074480,-175.31665717,0.00026027,2]
[355191554,1740975074492,-500.0,0.00026027,2]
[355191555,1740975074504,-500.0,0.00026027,2]
[355191556,1740975074516,-15566.77,0.00026027,2]
[355191557,1740975074527,-556.29,0.00026027,2]
[355191558,1740975074538,-2518.58,0.00026027,2]
[355191559,1740975074550,-152.75607393,0.00026027,2]
[355191560,1740975074562,-595.17,0.00026027,2]
[355191561,1740975074574,-2098.01,0.00026027,2]
[355191562,1740975074585,-500.0,0.00026027,2]
[355191563,1740975074597,-540.5,0.00026027,2]
[355191564,1740975074608,-567.04,0.00026027,2]
[355191565,1740975074619,-506.24655226,0.00026027,2]
[355191566,1740975074631,-500.0,0.00026027,2]
[355191567,1740975074642,-852.88,0.00026027,2]
[355191568,1740975074654,-898.43,0.00026027,2]
[355191569,1740975074666,-1616.95,0.00026027,2]
[355191570,1740975074678,-515.6,0.00026027,2]
[355191571,1740975074690,-500.0,0.00026027,2]
[355191572,1740975074703,-500.0,0.00026027,2]
[355191573,1740975074714,-500.0,0.00026027,2]
[355191574,1740975074726,-537.83,0.00026027,2]
[355191575,1740975074738,-511.58,0.00026027,2]
[355191576,1740975074754,-628.38,0.00026027,2]
[355191577,1740975074766,-536.97,0.00026027,2]
[355191578,1740975074777,-500.0,0.00026027,2]
[355191579,1740975074789,-619.57,0.00026027,2]
[355191580,1740975074800,-500.0,0.00026027,2]
[355191581,1740975074811,-35220.11,0.00026027,2]
[355191582,1740975074822,-500.0,0.00026027,2]
[355191583,1740975074833,-665.34,0.00026027,2]
[355191584,1740975074844,-500.0,0.00026027,2]
[355191585,1740975074856,-500.0,0.00026027,2]
[355191586,1740975074868,-500.0,0.00026027,2]
[355191587,1740975074880,-500.0,0.00026027,2]
[355191588,1740975074891,-500.0,0.00026027,2]
[355191589,1740975074903,-500.0,0.00026027,2]
[355191590,1740975074914,-500.0,0.00026027,2]
[355191591,1740975074925,-202.0,0.0002605,2]
[355191592,1740975074938,-203.0,0.0002613,2]
[355191593,1740975074949,-150.26443489,0.00026217,7]
[355191594,1740975074962,-1293.78184584,0.00026245,2]
[355191595,1740975074975,-150.0,0.00026276,7]
[355191596,1740975074987,-2581.61,0.000263,2]
[355191597,1740975075000,-3000.0,0.00026301,7]
[355191598,1740975075011,-568.51,0.00026301,2]
[355191599,1740975075023,-300.0,0.00026301,2]
[355191600,1740975075035,-5263.18,0.00026301,2]
[355191601,1740975075046,-500.0,0.00026301,2]
[355191602,1740975075272,-726.77,0.00026301,2]
[355191603,1740975075283,-538.98,0.00026301,2]
[355191604,1740975075295,-776.48,0.00026301,2]
[355191605,1740975075305,-1602.35,0.00026301,2]
[355191606,1740975075315,-654.85,0.00026301,2]
[355191607,1740975075326,-695.45,0.00026301,2]
[355191608,1740975075337,-500.0,0.00026301,2]
[355191609,1740975075348,-315.23661449,0.00026301,2]
[355191610,1740975075369,-15566.77,0.00026301,2]
[355191611,1740975075385,-556.29,0.00026301,2]
[355191612,1740975075397,-2518.58,0.00026301,2]
[355191613,1740975075408,-595.17,0.00026301,2]
[355191614,1740975075419,-2098.01,0.00026301,2]
[355191615,1740975075431,-500.0,0.00026301,2]
[355191616,1740975075442,-540.5,0.00026301,2]
[355191617,1740975075453,-567.04,0.00026301,2]
[355191618,1740975075465,-500.0,0.00026301,2]
[355191619,1740975075476,-852.88,0.00026301,2]
[355191620,1740975075488,-898.43,0.00026301,2]
[355191621,1740975075500,-1616.95,0.00026301,2]
[355191622,1740975075511,-515.6,0.00026301,2]
[355191623,1740975075522,-500.0,0.00026301,2]
[355191624,1740975075533,-500.0,0.00026301,2]
[355191625,1740975075545,-500.0,0.00026301,2]
[355191626,1740975075558,-537.83,0.00026301,2]
[355191627,1740975075568,-511.58,0.00026301,2]
[355191628,1740975075578,-628.38,0.00026301,2]
[355191629,1740975075589,-536.97,0.00026301,2]
[355191630,1740975075601,-500.0,0.00026301,2]
[355191631,1740975075612,-619.57,0.00026301,2]
[355191632,1740975075623,-500.0,0.00026301,2]
[355191633,1740975075635,-35220.11,0.00026301,2]
[355191634,1740975075647,-500.0,0.00026301,2]
[355191635,1740975075658,-665.34,0.00026301,2]
[355191636,1740975075674,-500.0,0.00026301,2]
[355191637,1740975075696,-500.0,0.00026301,2]
[355191638,1740975075709,-500.0,0.00026301,2]
[355191639,1740975075720,-500.0,0.00026301,2]
[355191640,1740975075732,-500.0,0.00026301,2]
[355191641,1740975075743,-500.0,0.00026301,2]
[355191642,1740975075755,-500.0,0.00026301,2]
[355191643,1740975075765,-218.0,0.0002632,2]
[355191644,1740975075775,-210.0,0.0002632,2]
[355191645,1740975075787,-17014.84198018,0.00026383,2]
[355191646,1740975075798,-2488.82,0.000264,7]
[355191647,1740975075809,-2581.61,0.00026574,2]